bitfinex/quotes_ETHUSD_20250916
["timestamp","ask_amount","ask_price","bid_price","bid_amount"]
[1758005373478,10.35811705,4513.5,4513.4,0.001]
[1758005373796,10.67441705,4513.5,4513.4,0.001]
[1758005374207,11.23753163,4513.5,4513.4,0.001]
[1758005374391,11.23753163,4513.5,4513.3,0.001]
[1758005374392,3.00762458,4513.4,4513.3,0.001]
[1758005374592,2.21572276,4513.2,4513.1,0.01]
[1758005374772,9.24502276,4513.2,4513.1,0.01]
[1758005374972,10.18272276,4513.2,4513.1,0.01]
[1758005376072,10.30510977,4513.2,4513.1,0.01]
[1758005377107,10.50913223,4513.2,4513.1,0.01]
[1758005377269,11.77139249,4513.2,4513.1,0.01]
[1758005377469,11.86022009,4513.2,4513.1,0.01]
[1758005378620,3.792,4512.9,4512.6,0.001]
[1758005378774,3.0,4512.7,4512.6,0.001]
[1758005379109,6.65070461,4512.7,4512.6,0.001]
[1758005379404,8.05889299,4512.7,4512.6,0.001]
[1758005380397,8.26367247,4512.7,4512.6,0.001]
[1758005381202,2.21621382,4512.2,4512.0,0.4896]
[1758005381402,2.21621382,4512.2,4511.1,0.01]
[1758005381403,14.07175538,4512.2,4511.1,0.01]
[1758005381600,2.21636117,4511.9,4511.8,0.4896]
[1758005381768,2.21656,4511.5,4511.1,0.01]
[1758005381971,5.14254156,4511.4,4511.2,0.956]
[1758005382177,5.14254156,4511.4,4511.3,1.2589]
[1758005382399,7.35914837,4511.4,4511.3,1.2589]
[1758005383539,2.21660681,4511.4,4511.3,1.2589]
[1758005384077,2.21656698,4511.5,4511.3,1.2589]
[1758005384407,2.21656698,4511.5,4511.4,0.956]
[1758005384607,2.21656698,4511.5,4511.4,1.2589]
[1758005386213,1.13680443,4511.7,4511.4,1.2589]
[1758005386521,0.32675522,4512.1,4511.5,0.956]
[1758005386721,3.0,4512.1,4512.0,0.3029]
[1758005386889,3.35280502,4512.4,4512.0,0.3029]
[1758005386890,0.66626617,4512.4,4512.0,1.2589]
[1758005387218,0.9930605,4512.4,4512.1,0.956]
[1758005387446,0.20424646,4512.4,4512.1,0.956]
[1758005387647,0.78510186,4513.3,4512.1,0.956]
[1758005387648,2.21596755,4512.8,4512.3,0.3029]
[1758005387805,2.21596755,4512.8,4512.4,0.956]
[1758005388009,2.21596755,4512.8,4512.7,0.3029]
[1758005388228,2.21596755,4512.8,4512.7,0.7925]
[1758005388655,10.68548365,4512.8,4512.7,0.4896]
[1758005388821,3.0,4512.7,4512.1,5.418]
[1758005389022,5.21596903,4512.7,4512.6,0.3029]
[1758005389343,2.21596826,4512.7,4512.6,0.3029]
[1758005389549,6.01398873,4512.7,4512.6,0.7925]
[1758005389844,5.42036836,4512.7,4512.6,1.2589]
[1758005390249,5.54302778,4512.7,4512.6,1.2589]
[1758005390541,5.42036836,4512.7,4512.6,1.2589]
[1758005390748,3.2044001,4512.7,4512.6,1.2589]
[1758005391254,3.32707404,4512.7,4512.6,1.2589]
[1758005391423,5.5430423,4512.7,4512.6,1.2589]
[1758005391621,3.32707404,4512.7,4512.6,1.2589]
[1758005392346,5.5430423,4512.7,4512.6,1.2589]
[1758005392955,3.32707404,4512.7,4512.6,1.2589]
[1758005393658,3.0,4512.7,4512.6,1.2589]
[1758005393820,3.1104,4512.7,4512.6,1.2589]
[1758005396125,3.43793766,4512.7,4512.6,1.2589]
[1758005396726,3.43793766,4512.7,4512.6,0.7925]
[1758005397069,5.65390592,4512.7,4512.6,0.4896]
[1758005397456,5.65390592,4512.7,4512.6,0.7956]
[1758005397627,3.43793766,4512.7,4512.6,0.7956]
[1758005397829,7.73030093,4512.7,4512.6,1.2325]
[1758005399662,2.2160767,4512.5,4512.3,0.4935]
[1758005399963,4.29236327,4512.4,4512.3,3.713]
[1758005400136,4.29236327,4512.4,4512.3,4.019]
[1758005400534,6.50847886,4512.4,4512.3,0.7995]
[1758005400759,6.50847886,4512.4,4512.3,3.713]
[1758005400760,7.14800953,4512.4,4512.3,3.713]
[1758005401154,10.62014822,4512.4,4512.3,3.713]
[1758005402542,10.30844822,4512.4,4512.3,4.2065]
[1758005402743,8.09233263,4512.4,4512.3,0.7995]
[1758005403365,8.09233263,4512.4,4512.3,1.2364]
[1758005404276,8.09233263,4512.4,4512.3,4.9494]
[1758005404439,7.62019394,4512.4,4512.3,4.9494]
[1758005404638,9.83630953,4512.4,4512.3,4.9494]
[1758005404837,9.83630953,4512.4,4512.3,4.5125]
[1758005405037,9.83630953,4512.4,4512.3,4.2065]
[1758005405273,10.14800953,4512.4,4512.3,3.713]
[1758005405638,0.1104,4512.3,4512.1,1.705]
[1758005405838,5.44950677,4512.3,4512.2,3.713]
[1758005406051,5.96627381,4512.3,4512.2,3.713]
[1758005406254,5.76120677,4512.3,4512.2,3.713]
[1758005406458,2.21621382,4512.2,4512.1,1.705]
[1758005406665,2.21621382,4512.2,4512.1,5.418]
[1758005406666,2.33915589,4512.2,4512.1,5.418]
[1758005406852,2.65085589,4512.2,4512.1,5.418]
[1758005407248,2.52791382,4512.2,4512.1,5.418]
[1758005407962,2.52791382,4512.2,4512.1,1.705]
[1758005408163,2.52791382,4512.2,4512.1,5.417]
[1758005408542,2.52791382,4512.2,4512.1,1.705]
[1758005408747,2.97431382,4512.2,4512.1,1.705]
[1758005408944,3.43771382,4512.2,4512.1,0.001]
[1758005409252,3.56075548,4512.2,4512.1,0.001]
[1758005409452,3.56076061,4512.2,4512.1,0.001]
[1758005409661,6.76583475,4512.2,4512.1,0.001]
[1758005410176,7.25933475,4512.2,4512.1,0.001]
[1758005411776,10.97233475,4512.2,4512.1,0.001]
[1758005412485,10.50893475,4512.2,4512.1,0.001]
[1758005413049,10.50893833,4512.2,4512.1,0.001]
[1758005413361,10.98162008,4512.2,4512.1,0.001]
[1758005413764,10.06258828,4512.2,4512.1,0.001]
[1758005414386,10.5352901,4512.2,4512.1,0.001]
[1758005415682,6.03788828,4512.2,4512.1,0.8005]
[1758005415863,10.33025155,4512.2,4512.1,1.2374]
[1758005416067,3.82167446,4512.2,4512.1,0.8005]
[1758005416265,3.0,4512.2,4512.1,1.2374]
[1758005418261,5.21621382,4512.2,4512.1,0.8005]
[1758005418477,9.50857709,4512.2,4512.1,0.8005]
[1758005419866,9.94342298,4512.2,4512.1,0.001]
[1758005424271,10.62167465,4512.2,4512.1,0.001]
[1758005424504,15.59373557,4512.2,4512.1,0.001]
[1758005424687,16.55293557,4512.2,4512.1,0.001]
[1758005424899,12.2605723,4512.2,4512.1,0.001]
[1758005425097,11.7986723,4512.2,4512.1,0.001]
[1758005425638,16.55293557,4512.2,4512.1,0.001]
[1758005426003,12.2605723,4512.2,4512.1,0.001]
[1758005426690,15.5106723,4512.2,4512.1,0.001]
[1758005427520,15.5106723,4512.2,4512.1,0.4983]
[1758005427521,15.0362723,4512.2,4512.1,0.4983]
[1758005427899,15.0362723,4512.2,4512.1,0.001]
[1758005428583,15.03633812,4512.2,4512.1,0.001]
[1758005428787,12.26063812,4512.2,4512.1,0.001]
[1758005429113,16.55300139,4512.2,4512.1,0.001]
[1758005429283,12.26063812,4512.2,4512.1,0.001]
[1758005429489,11.76333812,4512.2,4512.1,0.001]
[1758005429820,11.30143812,4512.2,4512.1,0.001]
[1758005430010,11.76333812,4512.2,4512.1,0.001]
[1758005430207,11.30143812,4512.2,4512.1,0.001]
[1758005430414,10.82703812,4512.2,4512.1,0.001]
[1758005432329,10.82729253,4512.2,4512.1,0.001]
[1758005433338,10.82730551,4512.2,4512.1,0.001]
[1758005434755,10.82730551,4512.2,4512.1,0.3127]
[1758005434756,10.51560551,4512.2,4512.1,0.3127]
[1758005434922,10.51560551,4512.2,4512.1,0.81]
[1758005435109,10.51560551,4512.2,4512.1,1.257]
[1758005435512,6.22324224,4512.2,4512.1,0.81]
[1758005435710,10.04263843,4512.2,4512.1,0.81]
[1758005435943,10.51560551,4512.2,4512.1,0.81]
[1758005436305,10.51560551,4512.2,4512.1,1.257]
[1758005436726,10.31024204,4512.2,4512.1,1.257]
[1758005438143,10.31024204,4512.2,4512.1,0.81]
[1758005438349,10.31024204,4512.2,4512.1,1.257]
[1758005439727,10.31024204,4512.2,4512.1,0.81]
[1758005440132,10.31024204,4512.2,4512.1,1.257]
[1758005441933,10.31024204,4512.2,4512.1,0.81]
[1758005443173,10.31024204,4512.2,4512.1,1.257]
[1758005444051,3.32869787,4512.2,4512.1,1.257]
[1758005444255,7.62106114,4512.2,4512.1,1.257]
[1758005445644,10.61329217,4512.2,4512.1,0.001]
[1758005445857,10.81888228,4512.2,4512.1,0.001]
[1758005446443,10.51658228,4512.2,4512.1,0.001]
[1758005446772,10.51658228,4512.2,4512.1,0.4983]
[1758005447333,10.51658228,4512.2,4512.1,0.81]
[1758005447780,3.80241508,4512.2,4512.1,1.257]
[1758005448077,3.32869787,4512.2,4512.1,0.81]
[1758005448378,3.32881731,4512.2,4512.1,1.257]
[1758005449140,3.33081731,4512.2,4512.1,1.257]
[1758005450053,0.002,4512.2,4512.1,1.257]
[1758005450879,4.29436327,4512.2,4512.1,4.968]
[1758005454048,4.29436327,4512.2,4512.1,4.967]
[1758005456563,0.002,4512.2,4512.1,4.967]
[1758005458962,0.002,4512.2,4512.1,0.81]
[1758005459175,0.002,4512.2,4512.1,4.9605]
[1758005460461,0.002,4512.2,4512.1,1.2505]
[1758005460791,0.002,4512.2,4512.1,4.2083]
[1758005460966,0.002,4512.2,4512.1,4.5213]
[1758005461166,0.002,4512.2,4512.1,4.9618]
[1758005467421,0.002,4512.2,4512.1,0.8113]
[1758005467626,0.002,4512.2,4512.1,4.5203]
[1758005468909,0.002,4512.2,4512.1,4.9608]
[1758005477130,0.002,4512.2,4512.1,4.5203]
[1758005477743,0.002,4512.2,4512.1,4.9608]
[1758005478233,0.002,4512.2,4512.1,1.2518]
[1758005478407,0.002,4512.2,4512.1,4.9608]
[1758005480827,0.002,4512.2,4512.1,4.2073]
[1758005481748,0.2975,4512.2,4512.1,4.2073]
[1758005484555,3.41361382,4512.2,4512.1,0.001]
[1758005484731,8.89435706,4512.2,4512.1,3.709]
[1758005485044,9.36791968,4512.2,4512.1,3.709]
[1758005486549,8.90451968,4512.2,4512.1,3.709]
[1758005486730,7.78840383,4512.2,4512.1,3.709]
[1758005487760,5.57219001,4512.2,4512.1,3.709]
[1758005488077,7.78840383,4512.2,4512.1,3.709]
[1758005488245,7.66506557,4512.2,4512.1,3.709]
[1758005490388,5.44885175,4512.2,4512.1,3.709]
[1758005491968,7.66506557,4512.2,4512.1,3.709]
[1758005493375,7.66506557,4512.2,4512.1,0.001]
[1758005493692,7.66506557,4512.2,4512.1,3.708]
[1758005494891,7.66506557,4512.2,4512.1,0.001]
[1758005495194,9.36830975,4512.2,4512.1,3.708]
[1758005496478,9.36830975,4512.2,4512.1,0.001]
[1758005496654,9.36830975,4512.2,4512.1,3.708]
[1758005496855,9.36830975,4512.2,4512.1,0.001]
[1758005497052,9.36830975,4512.2,4512.1,3.708]
[1758005497485,10.03455372,4512.2,4512.1,3.708]
[1758005498155,9.13465372,4512.2,4512.1,3.708]
[1758005498378,8.92888533,4512.2,4512.1,3.708]
[1758005499572,8.92888533,4512.2,4512.1,0.001]
[1758005501415,9.36538533,4512.2,4512.1,0.001]
[1758005501579,9.57111291,4512.2,4512.1,0.001]
[1758005501782,9.13461291,4512.2,4512.1,0.001]
[1758005502222,12.59801291,4512.2,4512.1,0.001]
[1758005502423,17.73922335,4512.2,4512.1,0.001]
[1758005502807,17.73922335,4512.2,4511.6,0.001]
[1758005502808,6.00826293,4512.1,4511.6,0.001]
[1758005503127,11.15981117,4511.7,4511.6,0.001]
[1758005503319,16.17132498,4511.7,4511.6,0.001]
[1758005503505,17.07122498,4511.7,4511.6,0.001]
[1758005503704,17.73769689,4511.7,4511.6,0.001]
[1758005504092,2.21670508,4511.2,4511.1,0.011]
[1758005504297,14.07505683,4511.2,4511.1,0.011]
[1758005504620,16.27947064,4511.2,4511.1,0.011]
[1758005504916,16.74427064,4511.2,4511.1,0.011]
[1758005505118,16.5385602,4511.2,4511.1,0.011]
[1758005505823,17.3305602,4511.2,4511.1,0.011]
[1758005506122,3.792,4510.9,4510.8,0.08]
[1758005506334,10.25023645,4510.9,4510.8,0.08]
[1758005506487,11.01984697,4510.9,4510.8,0.08]
[1758005506687,11.91974697,4510.9,4510.8,0.08]
[1758005507087,11.91860735,4510.9,4510.8,0.08]
[1758005507283,12.00748626,4510.9,4510.8,0.08]
[1758005507512,2.21719657,4510.2,4510.1,0.01]
[1758005507740,14.07554832,4510.2,4510.1,0.01]
[1758005507939,15.27094832,4510.2,4510.1,0.01]
[1758005508414,16.15183434,4510.2,4510.1,0.01]
[1758005508613,16.26293236,4510.2,4510.1,0.01]
[1758005508914,16.93927392,4510.2,4510.1,0.01]
[1758005509150,16.73454604,4510.2,4510.1,0.01]
[1758005509510,6.00924573,4510.1,4509.8,0.001]
[1758005509812,2.2172949,4510.0,4509.8,0.001]
[1758005510028,9.21984406,4509.9,4509.8,0.001]
[1758005510228,10.68783923,4509.9,4509.8,0.001]
[1758005510433,11.60433923,4509.9,4509.8,0.001]
[1758005510730,11.69323474,4509.9,4509.8,0.001]
[1758005511129,11.48885325,4509.9,4509.8,0.001]
[1758005512132,11.02545325,4509.9,4509.8,0.001]
[1758005512366,10.55383957,4509.9,4509.8,0.001]
[1758005512673,11.01723957,4509.9,4509.8,0.001]
[1758005512832,10.55383957,4509.9,4509.8,0.001]
[1758005513032,10.10073957,4509.9,4509.8,0.001]
[1758005513833,10.55383957,4509.9,4509.8,0.001]
[1758005518583,6.39373957,4509.9,4509.8,0.001]
[1758005518733,5.30623957,4509.9,4509.8,0.7801]
[1758005518976,0.08889551,4509.9,4509.8,1.2367]
[1758005519675,2.21716392,4510.3,4509.8,1.2367]
[1758005519900,5.92502259,4510.6,4509.9,0.9415]
[1758005519901,3.0,4510.0,4509.9,0.9415]
[1758005520106,3.0,4510.0,4509.9,1.2357]
[1758005520611,5.2172949,4510.0,4509.9,1.2357]
[1758005520785,3.0,4510.0,4509.9,1.2357]
[1758005521884,0.66656668,4510.1,4509.9,1.2357]
[1758005522188,0.1104,4510.1,4510.0,1.28690987]
[1758005522390,0.1104,4510.1,4510.0,1.2357]
[1758005527647,0.1104,4510.1,4510.0,4.9427]
[1758005528042,0.1104,4510.1,4510.0,1.2357]
[1758005528243,5.32764573,4510.1,4510.0,0.4849]
[1758005528453,2.21734406,4509.9,4509.8,0.001]
[1758005528606,9.51480739,4509.9,4509.8,0.001]
[1758005528807,10.69780739,4509.9,4509.8,0.001]
[1758005529224,11.16866027,4509.9,4509.8,0.001]
[1758005529407,11.83531879,4509.9,4509.8,0.001]
[1758005530438,11.37191879,4509.9,4509.8,0.001]
[1758005530964,16.53884952,4509.9,4509.8,0.001]
[1758005531113,16.66165196,4509.9,4509.8,0.001]
[1758005531614,17.45669752,4509.9,4509.8,0.001]
[1758005532257,16.86631064,4509.9,4509.8,0.001]
[1758005533263,16.86642217,4509.9,4509.8,0.001]
[1758005534230,3.00949157,4509.6,4509.5,0.001]
[1758005534463,15.80372796,4509.6,4509.5,0.001]
[1758005534761,16.19991116,4509.6,4509.5,0.001]
[1758005534933,16.28881734,4509.6,4509.5,0.001]
[1758005536223,16.28914581,4509.6,4509.5,0.001]
[1758005536830,15.87962793,4509.6,4509.5,0.001]
[1758005537063,15.75671396,4509.6,4509.5,0.001]
[1758005537265,15.87962831,4509.6,4509.5,0.001]
[1758005537566,15.75671396,4509.6,4509.5,0.001]
[1758005537764,16.08448564,4509.6,4509.5,0.001]
[1758005538251,15.75671396,4509.6,4509.5,0.001]
[1758005538926,16.28931444,4509.6,4509.5,0.001]
[1758005539143,16.08446442,4509.6,4509.5,0.001]
[1758005539346,15.8796144,4509.6,4509.5,0.001]
[1758005539649,16.28924852,4509.6,4509.5,0.001]
[1758005540516,15.82584852,4509.6,4509.5,0.001]
[1758005541837,15.10624852,4509.6,4509.5,0.001]
[1758005542173,15.10624852,4509.6,4509.5,0.485]
[1758005542368,15.42124852,4509.6,4509.5,0.001]
[1758005543675,15.42120166,4509.6,4509.5,0.001]
[1758005544042,15.86430166,4509.6,4509.5,0.001]
[1758005544639,15.42120166,4509.6,4509.5,0.001]
[1758005545156,15.29834808,4509.6,4509.5,0.001]
[1758005545373,15.42118076,4509.6,4509.5,0.001]
[1758005545875,15.86428076,4509.6,4509.5,0.001]
[1758005546975,15.86428076,4509.6,4509.3,0.001]
[1758005546976,3.00958992,4509.4,4509.3,0.001]
[1758005547150,6.00983583,4508.9,4508.8,0.081]
[1758005547348,11.03515551,4508.9,4508.8,0.081]
[1758005547648,11.47825551,4508.9,4508.8,0.081]
[1758005547848,11.56717256,4508.9,4508.8,0.081]
[1758005548370,11.12407256,4508.9,4508.8,0.081]
[1758005548740,11.56717256,4508.9,4508.8,0.081]
[1758005549269,11.67893104,4508.9,4508.8,0.081]
[1758005549452,11.59001399,4508.9,4508.8,0.081]
[1758005550098,10.30739754,4508.7,4508.2,0.485]
[1758005550264,15.01771722,4508.7,4508.2,0.485]
[1758005550464,15.33271722,4508.7,4508.2,0.485]
[1758005550859,15.77581722,4508.7,4508.2,0.485]
[1758005551052,16.23921722,4508.7,4508.2,0.001]
[1758005551690,15.77581722,4508.7,4508.2,0.001]
[1758005552093,3.0100818,4508.4,4508.2,0.001]
[1758005552389,17.50784108,4508.4,4508.2,0.001]
[1758005552589,18.72934108,4508.4,4508.2,0.001]
[1758005552949,18.26594108,4508.4,4508.2,0.001]
[1758005554990,18.72934108,4508.4,4508.2,0.001]
[1758005555759,18.26594108,4508.4,4508.2,0.001]
[1758005556188,17.48096481,4508.4,4508.2,0.001]
[1758005556489,18.26640477,4508.4,4508.2,0.001]
[1758005557289,17.91255423,4508.4,4508.2,0.001]
[1758005557472,18.35565423,4508.4,4508.2,0.001]
[1758005558185,17.56990024,4508.4,4508.2,0.001]
[1758005558489,18.35597212,4508.4,4508.2,0.001]
[1758005558677,17.56990024,4508.4,4508.2,0.001]
[1758005559079,18.03330024,4508.4,4508.2,0.001]
[1758005559279,18.81951171,4508.4,4508.2,0.001]
[1758005560155,18.03330024,4508.4,4508.2,0.001]
[1758005560488,18.81965763,4508.4,4508.2,0.001]
[1758005560890,18.35625763,4508.4,4508.2,0.001]
[1758005561599,20.69325763,4508.4,4508.2,0.001]
[1758005561795,18.35625763,4508.4,4508.2,0.001]
[1758005562967,6.120531,4508.3,4508.2,0.001]
[1758005563171,7.56695068,4508.3,4508.2,0.001]
[1758005563485,7.43885068,4508.3,4508.2,0.001]
[1758005563872,7.21278888,4508.3,4508.2,0.485]
[1758005564286,7.52778888,4508.3,4508.2,0.001]
[1758005566195,7.21278888,4508.3,4508.2,0.7744]
[1758005566399,14.90505131,4508.3,4508.2,1.2402]
[1758005566598,10.01738888,4508.3,4508.2,1.2402]
[1758005566812,10.60457182,4508.3,4508.2,1.2402]
[1758005566986,6.89757182,4508.3,4508.2,1.2402]
[1758005567193,14.90203515,4508.3,4508.2,1.2402]
[1758005567707,14.81309695,4508.3,4508.2,1.2402]
[1758005569082,15.0180934,4508.3,4508.2,1.2402]
[1758005570094,14.81309695,4508.3,4508.2,1.2402]
[1758005571101,6.01663362,4508.3,4508.2,1.2402]
[1758005571305,9.72363362,4508.3,4508.2,1.2402]
[1758005575687,14.02109695,4508.3,4508.2,1.2402]
[1758005576218,14.22646391,4508.3,4508.2,1.2402]
[1758005576581,6.22200058,4508.3,4508.2,1.2402]
[1758005576783,6.01663362,4508.3,4508.2,1.2402]
[1758005577721,5.89380094,4508.3,4508.2,1.2402]
[1758005578019,0.002,4508.6,4508.2,1.36532]
[1758005578224,0.002,4508.6,4508.3,0.9191]
[1758005578520,0.1104,4508.4,4508.3,0.9191]
[1758005578724,0.1104,4508.4,4508.3,1.2245]
[1758005578898,0.1104,4508.4,4508.3,1.58248402]
[1758005579321,0.1104,4508.4,4508.3,1.2245]
[1758005581733,2.3284818,4508.4,4508.3,1.2245]
[1758005582220,0.1104,4508.4,4508.3,1.2245]
[1758005584608,2.3284818,4508.4,4508.3,1.2245]
[1758005584852,2.218131,4508.3,4508.2,0.001]
[1758005585145,5.42312497,4508.3,4508.2,0.001]
[1758005585328,6.6576766,4508.3,4508.2,0.001]
[1758005585511,7.1108766,4508.3,4508.2,0.001]
[1758005586109,6.78068555,4508.3,4508.2,0.001]
[1758005587444,6.1961766,4508.3,4508.2,0.001]
[1758005588830,6.0861766,4508.3,4508.2,0.001]
[1758005589034,6.20920891,4508.3,4508.2,0.001]
[1758005589636,9.91520891,4508.3,4508.2,0.001]
[1758005590666,9.7921766,4508.3,4508.2,0.001]
[1758005591066,9.91522939,4508.3,4508.2,0.001]
[1758005592666,15.0740894,4508.3,4508.2,0.001]
[1758005592966,15.5272894,4508.3,4508.2,0.001]
[1758005593166,15.0740894,4508.3,4508.2,0.001]
[1758005593756,15.0740894,4508.3,4508.2,0.4514]
[1758005593959,14.7733894,4508.3,4508.2,0.4514]
[1758005595048,15.27921558,4508.3,4508.2,0.001]
[1758005595963,15.0740894,4508.3,4508.2,0.001]
[1758005596164,15.27924658,4508.3,4508.2,0.001]
[1758005599160,14.80689495,4508.3,4508.2,0.001]
[1758005599365,15.27965582,4508.3,4508.2,0.001]
[1758005599582,14.95160906,4508.3,4508.2,0.001]
[1758005600062,14.74645188,4508.3,4508.2,0.001]
[1758005601985,14.95162941,4508.3,4508.2,0.001]
[1758005602355,14.74645188,4508.3,4508.2,0.001]
[1758005602577,15.15679254,4508.3,4508.2,0.001]
[1758005602989,15.58689254,4508.3,4508.2,0.001]
[1758005603185,14.95162221,4508.3,4508.2,0.001]
[1758005603501,14.74645188,4508.3,4508.2,0.001]
[1758005604451,15.07470519,4508.3,4508.2,0.4672]
[1758005604651,14.97916494,4508.3,4508.2,0.4672]
[1758005605603,6.11430493,4508.3,4508.2,0.7522]
[1758005605810,2.92143289,4508.4,4508.2,1.34981]
[1758005605811,0.002,4508.4,4508.2,1.34981]
[1758005606011,0.002,4508.4,4508.3,0.9401]
[1758005606471,0.002,4508.4,4508.3,1.2251]
[1758005606472,2.2200818,4508.4,4508.3,1.2251]
[1758005607014,0.002,4508.4,4508.3,1.2251]
[1758005607377,2.2200818,4508.4,4508.3,1.2251]
[1758005614594,0.002,4508.4,4508.3,1.2251]
[1758005614796,2.2200818,4508.4,4508.3,1.2251]
[1758005615493,2.2200818,4508.4,4508.3,0.7512]
[1758005615893,2.2200818,4508.4,4508.3,1.2251]
[1758005620103,0.002,4508.4,4508.3,1.2251]
[1758005621647,2.2200818,4508.4,4508.3,1.2251]
[1758005623026,0.002,4508.4,4508.3,1.2251]
[1758005623760,0.1124,4508.4,4508.3,1.2251]
[1758005623920,0.1124,4508.4,4508.3,1.57063422]
[1758005625758,0.1124,4508.4,4508.3,5.27463422]
[1758005627125,0.1124,4508.4,4508.3,7.49276522]
[1758005627336,0.1124,4508.4,4508.3,5.27463422]
[1758005627946,0.1124,4508.4,4508.3,5.27563422]
[1758005628161,0.1124,4508.4,4508.3,7.49376522]
[1758005628363,0.002,4508.4,4508.3,19.77563422]
[1758005628778,0.002,4508.4,4508.3,21.99376522]
[1758005629071,0.002,4508.4,4508.3,5.27563422]
[1758005633527,0.002,4508.4,4508.3,1.09773422]
[1758005633866,0.4196,4508.4,4508.3,3.704]
[1758005634950,2.6376818,4508.4,4508.3,3.704]
[1758005635971,2.6376818,4508.4,4508.3,0.001]
[1758005636177,0.4196,4508.4,4508.3,3.704]
[1758005636344,0.1124,4508.4,4508.3,5.05701845]
[1758005636543,0.1124,4508.4,4508.3,5.52521845]
[1758005637338,0.1124,4508.4,4508.3,5.05701845]
[1758005637541,0.1124,4508.4,4508.3,4.4636]
[1758005637952,0.1124,4508.4,4508.3,0.7606]
[1758005637953,2.3304818,4508.4,4508.3,0.7606]
[1758005638160,2.3304818,4508.4,4508.3,4.4636]
[1758005638369,0.1124,4508.4,4508.3,4.1568]
[1758005638581,0.1124,4508.4,4508.3,4.4636]
[1758005638796,0.1124,4508.4,4508.3,5.38157818]
[1758005641602,0.002,4508.4,4508.3,5.38157818]
[1758005641756,0.002,4508.4,4508.3,11.89799217]
[1758005642788,0.002,4508.4,4508.3,12.00839217]
[1758005648870,0.002,4508.4,4508.3,12.00739217]
[1758005649588,0.002,4508.4,4508.3,12.09626437]
[1758005652394,0.2921,4508.4,4508.3,0.65005038]
[1758005652693,0.7322,4508.4,4508.3,4.26317818]
[1758005652879,1.1956,4508.4,4508.3,3.8134]
[1758005654295,0.2921,4508.4,4508.3,3.8134]
[1758005654505,0.2921,4508.4,4508.3,6.031531]
[1758005654713,0.2921,4508.4,4508.3,3.8134]
[1758005654872,0.2921,4508.4,4508.3,4.63958491]
[1758005655914,0.002,4508.4,4508.3,6.85771591]
[1758005657413,0.2921,4508.4,4508.3,11.1559989]
[1758005660577,0.2921,4508.4,4508.3,11.6128989]
[1758005660774,0.2921,4508.4,4508.3,26.1128989]
[1758005661809,0.002,4508.4,4508.3,26.1128989]
[1758005663642,0.002,4508.4,4508.3,11.6128989]
[1758005664222,0.002,4508.4,4508.3,26.1128989]
[1758005667131,0.002,4508.4,4508.3,11.6128989]
[1758005667703,0.002,4508.4,4508.3,26.1128989]
[1758005668339,0.002,4508.4,4508.3,26.4262989]
[1758005668526,0.002,4508.4,4508.3,22.7242989]
[1758005668726,0.002,4508.4,4508.3,26.4252989]
[1758005670732,0.002,4508.4,4508.3,11.9252989]
[1758005671159,0.002,4508.4,4508.3,26.4252989]
[1758005672161,0.002,4508.4,4508.3,26.8562989]
[1758005672486,0.002,4508.6,4508.5,2.2180326]
[1758005672765,0.002,4508.6,4508.5,8.08036475]
[1758005672966,0.002,4508.6,4508.5,9.25948443]
[1758005674168,0.002,4508.6,4508.5,9.34835524]
[1758005675270,0.002,4508.6,4508.5,23.84835524]
[1758005678774,0.002,4508.8,4508.7,3.00993421]
[1758005679071,0.002,4508.8,4508.7,11.03139654]
[1758005679276,0.002,4508.8,4508.7,12.2105172]
[1758005679453,0.002,4508.8,4508.7,26.7105172]
[1758005679655,0.002,4508.8,4508.7,26.79937815]
[1758005679838,0.002,4508.8,4508.7,28.93852998]
[1758005680460,0.002,4509.4,4509.0,2.2177582]
[1758005680799,0.002,4509.4,4509.2,6.62637127]
[1758005681075,0.002,4509.4,4509.2,6.93977127]
[1758005681371,0.002,4509.4,4509.2,7.82767127]
[1758005681570,0.002,4509.4,4509.2,9.71809631]
[1758005682096,0.002,4509.4,4509.2,10.15426343]
[1758005683793,0.002,4509.6,4509.3,2.2176391]
[1758005684094,0.002,4509.6,4509.5,6.51582373]
[1758005684300,0.002,4509.6,4509.5,8.77078565]
[1758005684494,0.002,4509.6,4509.5,23.27078565]
[1758005684717,0.002,4509.6,4509.5,24.15868565]
[1758005685575,0.002,4509.6,4509.5,24.62208565]
[1758005689920,0.002,4509.6,4509.5,28.81208565]
[1758005692609,0.002,4509.6,4509.5,24.62208565]
[1758005692818,0.002,4510.1,4510.0,2.2172949]
[1758005693019,0.002,4510.1,4510.0,12.3852167]
[1758005693223,0.002,4510.1,4510.0,13.69874376]
[1758005693650,0.002,4510.6,4510.5,2.2170491]
[1758005693834,0.002,4510.6,4510.5,10.23650258]
[1758005694032,0.002,4510.6,4510.5,11.43963209]
[1758005694230,0.002,4510.6,4510.5,12.4633071]
[1758005694435,0.002,4510.6,4510.5,17.30282143]
[1758005694637,0.002,4510.6,4510.5,13.00453844]
[1758005695028,0.002,4510.6,4510.5,27.50453844]
[1758005696710,0.002,4510.6,4510.5,32.59482143]
[1758005697223,0.002,4511.3,4511.0,2.21677571]
[1758005697440,0.002,4511.3,4511.2,6.51498807]
[1758005697642,0.002,4511.3,4511.2,6.62538807]
[1758005697828,0.303,4511.3,4511.2,6.62538807]
[1758005698146,0.303,4511.3,4511.2,21.12538807]
[1758005698358,0.303,4511.3,4511.2,23.2645399]
[1758005701282,1.2141,4511.3,4511.2,26.9625399]